fUSD/lending_fUSD_20260506
["ID","MTS","AMOUNT","RATE_DAILY","PERIOD"]
[421667057,1778035850000,-151.0,0.00024507,2]
[421667065,1778035850000,-500.0,0.00024657,2]
[421667066,1778035850000,-500.0,0.00024657,2]
[421667064,1778035850000,-500.0,0.00024657,2]
[421667068,1778035850000,-500.0,0.00024657,2]
[421667070,1778035850000,-500.0,0.00024657,2]
[421667067,1778035850000,-500.0,0.00024657,2]
[421667044,1778035850000,-200.0,0.00024199,2]
[421667042,1778035850000,-200.0,0.00024199,2]
[421667069,1778035850000,-500.0,0.00024657,2]
[421667041,1778035850000,-200.0,0.00024199,2]
[421667043,1778035850000,-200.0,0.00024199,2]
[421667015,1778035850000,-151.0,0.00023913,2]
[421667016,1778035850000,-296.24228,0.00023913,2]
[421667024,1778035850000,-385.0,0.00024,2]
[421667023,1778035850000,-1179.0,0.00024,2]
[421667022,1778035850000,-394.0,0.00024,2]
[421667021,1778035850000,-305.0,0.00024,2]
[421667018,1778035850000,-150.0,0.00024,2]
[421667019,1778035850000,-395.0,0.00024,2]
[421667025,1778035850000,-536.0,0.00024,2]
[421667026,1778035850000,-198.0,0.00024,2]
[421667027,1778035850000,-202.0,0.00024,2]
[421667017,1778035850000,-1047.0,0.00024,2]
[421667028,1778035850000,-200.0,0.00024004,2]
[421667029,1778035850000,-1594.61,0.0002404,2]
[421667039,1778035850000,-200.0,0.00024199,2]
[421667040,1778035850000,-200.0,0.00024199,2]
[421667038,1778035850000,-200.0,0.00024199,2]
[421667030,1778035850000,-500.0,0.00024173,2]
[421667034,1778035850000,-151.274468,0.00024174,2]
[421667037,1778035850000,-26073.07,0.00024174,2]
[421667036,1778035850000,-2431.19,0.00024174,2]
[421667032,1778035850000,-500.0,0.00024173,2]
[421667035,1778035850000,-3932.42,0.00024174,2]
[421667031,1778035850000,-500.0,0.00024173,2]
[421667033,1778035850000,-513.87,0.00024173,2]
[421667107,1778035851000,-204.37258832,0.00025,2]
[421667111,1778035851000,-157.0,0.000251,2]
[421667105,1778035851000,-385.6557652,0.00025,2]
[421667106,1778035851000,-538.5843824,0.00025,2]
[421667110,1778035851000,-157.0,0.000251,2]
[421667104,1778035851000,-1182.89859146,0.00025,2]
[421667103,1778035851000,-403.72208459,0.00025,2]
[421667100,1778035851000,-404.99567722,0.00025,2]
[421667102,1778035851000,-308.52367984,0.00025,2]
[421667113,1778035851000,-157.0,0.000251,2]
[421667108,1778035851000,-209.91845794,0.00025,2]
[421667116,1778035851000,-3102.0,0.000251,2]
[421667136,1778035851000,-204.0,0.00026027,2]
[421667115,1778035851000,-3102.0,0.000251,2]
[421667119,1778035851000,-158.64365247,0.0002544,2]
[421667112,1778035851000,-157.0,0.000251,2]
[421667117,1778035851000,-250.0,0.00025205,2]
[421667120,1778035851000,-200.0,0.00025505,2]
[421667121,1778035851000,-181.46,0.00025644,2]
[421667118,1778035851000,-6557.80716983,0.00025416,2]
[421667122,1778035851000,-200.0,0.0002571,2]
[421667123,1778035851000,-350.0,0.00025753,2]
[421667135,1778035851000,-150.0,0.00026027,2]
[421667134,1778035851000,-644.79446246,0.00025989,2]
[421667109,1778035851000,-157.0,0.000251,2]
[421667124,1778035851000,-450.0,0.00025767,2]
[421667114,1778035851000,-157.0,0.000251,2]
[421667101,1778035851000,-185.28566167,0.00025,2]
[421667085,1778035851000,-151.0,0.00024658,2]
[421667099,1778035851000,-1050.58030331,0.00025,2]
[421667075,1778035851000,-150.0,0.00024658,2]
[421667072,1778035851000,-500.0,0.00024657,2]
[421667125,1778035851000,-434.15,0.00025786,2]
[421667074,1778035851000,-500.0,0.00024657,2]
[421667071,1778035851000,-500.0,0.00024657,2]
[421667073,1778035851000,-500.0,0.00024657,2]
[421667077,1778035851000,-162.249416,0.00024658,2]
[421667087,1778035851000,-151.0,0.00024658,2]
[421667076,1778035851000,-162.249416,0.00024658,2]
[421667078,1778035851000,-162.249416,0.00024658,2]
[421667079,1778035851000,-162.249416,0.00024658,2]
[421667081,1778035851000,-151.0,0.00024658,2]
[421667082,1778035851000,-151.0,0.00024658,2]
[421667084,1778035851000,-1000.0,0.00024658,2]
[421667086,1778035851000,-151.0,0.00024658,2]
[421667083,1778035851000,-151.0,0.00024658,2]
[421667080,1778035851000,-151.0,0.00024658,2]
[421667089,1778035851000,-151.0,0.00024658,2]
[421667093,1778035851000,-151.0,0.00024658,2]
[421667095,1778035851000,-158.64365247,0.00024658,2]
[421667096,1778035851000,-200.0,0.00024857,2]
[421667097,1778035851000,-151.0,0.00024887,7]
[421667091,1778035851000,-151.0,0.00024658,2]
[421667092,1778035851000,-151.0,0.00024658,2]
[421667088,1778035851000,-151.0,0.00024658,2]
[421667090,1778035851000,-151.0,0.00024658,2]
[421667094,1778035851000,-356.97,0.00024658,2]
[421667098,1778035851000,-216.0,0.0002493,30]
[421667126,1778035851000,-549.23,0.00025786,2]
[421667185,1778035851000,-500.0,0.00027397,2]
[421667133,1778035851000,-152.0,0.00025959,5]
[421667169,1778035851000,-572.0,0.00027397,2]
[421667164,1778035851000,-572.0,0.00027397,2]
[421667167,1778035851000,-572.0,0.00027397,2]
[421667162,1778035851000,-7565.0790333,0.00027255,2]
[421667163,1778035851000,-821.47864409,0.00027397,2]
[421667166,1778035851000,-572.0,0.00027397,2]
[421667171,1778035851000,-572.0,0.00027397,2]
[421667168,1778035851000,-572.0,0.00027397,2]
[421667165,1778035851000,-572.0,0.00027397,2]
[421667174,1778035851000,-500.0,0.00027397,2]
[421667172,1778035851000,-500.0,0.00027397,2]
[421667183,1778035851000,-500.0,0.00027397,2]
[421667170,1778035851000,-572.0,0.00027397,2]
[421667180,1778035851000,-572.0,0.00027397,2]
[421667178,1778035851000,-572.0,0.00027397,2]
[421667182,1778035851000,-572.0,0.00027397,2]
[421667181,1778035851000,-500.0,0.00027397,2]
[421667176,1778035851000,-572.0,0.00027397,2]
[421667175,1778035851000,-572.0,0.00027397,2]
[421667173,1778035851000,-572.0,0.00027397,2]
[421667179,1778035851000,-500.0,0.00027397,2]
[421667184,1778035851000,-572.0,0.00027397,2]
[421667186,1778035851000,-572.0,0.00027397,2]
[421667187,1778035851000,-302.27713592,0.00027397,2]
[421667188,1778035851000,-150.0,0.00027397,2]
[421667127,1778035851000,-3932.42,0.00025786,2]
[421667177,1778035851000,-500.0,0.00027397,2]
[421667161,1778035851000,-506.0,0.00027137,2]
[421667189,1778035851000,-572.0,0.00027397,2]
[421667156,1778035851000,-550.0,0.00026849,2]
[421667158,1778035851000,-158.64,0.00027006,2]
[421667129,1778035851000,-26073.07,0.00025786,2]
[421667130,1778035851000,-156.90090257,0.00025831,2]
[421667132,1778035851000,-152.0,0.00025959,5]
[421667128,1778035851000,-2431.19,0.00025786,2]
[421667137,1778035851000,-29737.8339845,0.00026104,2]
[421667139,1778035851000,-158.64365247,0.00026223,2]
[421667141,1778035851000,-2414.6,0.00026296,2]
[421667140,1778035851000,-157.0,0.00026266,3]
[421667138,1778035851000,-776.8168964,0.00026104,2]
[421667146,1778035851000,-500.0,0.00026536,2]
[421667147,1778035851000,-500.0,0.00026536,2]
[421667148,1778035851000,-500.0,0.00026536,2]
[421667131,1778035851000,-500.0,0.00025931,2]
[421667143,1778035851000,-551.68,0.00026454,2]
[421667153,1778035851000,-1908.0,0.00026586,5]
[421667151,1778035851000,-619.22006424,0.00026549,2]
[421667157,1778035851000,-161.49,0.00027,2]
[421667155,1778035851000,-297.922,0.00026849,2]
[421667142,1778035851000,-450.0,0.00026301,2]
[421667154,1778035851000,-3482.0,0.00026586,5]
[421667152,1778035851000,-200.0,0.00026563,2]
[421667159,1778035851000,-156.90090257,0.0002709,2]
[421667149,1778035851000,-500.0,0.00026536,2]
[421667150,1778035851000,-513.87,0.00026536,2]
[421667145,1778035851000,-11742.03605366,0.00026534,2]
[421667144,1778035851000,-3567.23845485,0.00026477,2]
[421667160,1778035851000,-150.0,0.00027123,20]
[421667228,1778035852000,-1576.496441,0.00027397,2]
[421667239,1778035852000,-1774.795959,0.00027397,2]
[421667229,1778035852000,-1576.496441,0.00027397,2]
[421667224,1778035852000,-1576.496441,0.00027397,2]
[421667217,1778035852000,-212.990149,0.00027397,2]
[421667226,1778035852000,-1576.496441,0.00027397,2]
[421667227,1778035852000,-1576.496441,0.00027397,2]
[421667223,1778035852000,-1576.496441,0.00027397,2]
[421667222,1778035852000,-300.0,0.00027397,2]
[421667219,1778035852000,-212.990149,0.00027397,2]
[421667225,1778035852000,-1576.496441,0.00027397,2]
[421667238,1778035852000,-1576.496441,0.00027397,2]
[421667230,1778035852000,-1576.496441,0.00027397,2]
[421667234,1778035852000,-1576.496441,0.00027397,2]
[421667232,1778035852000,-1576.496441,0.00027397,2]
[421667233,1778035852000,-1576.496441,0.00027397,2]
[421667235,1778035852000,-1576.496441,0.00027397,2]
[421667237,1778035852000,-1576.496441,0.00027397,2]
[421667236,1778035852000,-1576.496441,0.00027397,2]
[421667240,1778035852000,-1774.795959,0.00027397,2]
[421667251,1778035852000,-1774.795959,0.00027397,2]
[421667246,1778035852000,-1015.9,0.00027397,2]
[421667242,1778035852000,-1774.795959,0.00027397,2]
[421667252,1778035852000,-1774.795959,0.00027397,2]
[421667216,1778035852000,-212.990149,0.00027397,2]
[421667231,1778035852000,-1576.496441,0.00027397,2]
[421667218,1778035852000,-212.990149,0.00027397,2]
[421667200,1778035852000,-203.08154012,0.00027397,2]
[421667220,1778035852000,-212.990149,0.00027397,2]
[421667194,1778035852000,-572.0,0.00027397,2]
[421667190,1778035852000,-572.0,0.00027397,2]
[421667191,1778035852000,-572.0,0.00027397,2]
[421667195,1778035852000,-572.0,0.00027397,2]
[421667193,1778035852000,-572.0,0.00027397,2]
[421667196,1778035852000,-588.47706299,0.00027397,2]
[421667192,1778035852000,-572.0,0.00027397,2]
[421667198,1778035852000,-150.0,0.00027397,2]
[421667208,1778035852000,-212.990149,0.00027397,2]
[421667199,1778035852000,-150.0,0.00027397,2]
[421667209,1778035852000,-212.990149,0.00027397,2]
[421667202,1778035852000,-650.0,0.00027397,5]
[421667201,1778035852000,-1500.0,0.00027397,2]
[421667197,1778035852000,-230.88441929,0.00027397,2]
[421667205,1778035852000,-212.990149,0.00027397,2]
[421667203,1778035852000,-286.24644495,0.00027397,7]
[421667206,1778035852000,-212.990149,0.00027397,2]
[421667204,1778035852000,-334.47,0.00027397,20]
[421667207,1778035852000,-212.990149,0.00027397,2]
[421667211,1778035852000,-212.990149,0.00027397,2]
[421667221,1778035852000,-253.501076,0.00027397,2]
[421667210,1778035852000,-212.990149,0.00027397,2]
[421667212,1778035852000,-212.990149,0.00027397,2]
[421667215,1778035852000,-212.990149,0.00027397,2]
[421667214,1778035852000,-212.990149,0.00027397,2]
[421667213,1778035852000,-212.990149,0.00027397,2]
[421667247,1778035852000,-1774.795959,0.00027397,2]
[421667241,1778035852000,-1774.795959,0.00027397,2]
[421667250,1778035852000,-1774.795959,0.00027397,2]
[421667276,1778035852000,-151.0,0.00027397,2]
[421667280,1778035852000,-551.68,0.00027399,30]
[421667279,1778035852000,-151.0,0.00027397,2]
[421667284,1778035852000,-551.78631548,0.00027399,30]
[421667283,1778035852000,-551.68,0.00027399,30]
[421667281,1778035852000,-551.68,0.00027399,30]
[421667278,1778035852000,-21345.61,0.00027397,10]
[421667282,1778035852000,-551.68,0.00027399,30]
[421667287,1778035852000,-160.0,0.000274,33]
[421667288,1778035852000,-500.0,0.000274,7]
[421667298,1778035852000,-158.64,0.00027789,2]
[421667291,1778035852000,-624.0,0.00027425,2]
[421667289,1778035852000,-200.0,0.00027415,2]
[421667290,1778035852000,-3536.0,0.00027425,2]
[421667296,1778035852000,-150.0,0.00027425,2]
[421667294,1778035852000,-1221.0,0.00027425,2]
[421667293,1778035852000,-925.0,0.00027425,2]
[421667297,1778035852000,-6043.0,0.00027425,2]
[421667292,1778035852000,-1352.0,0.00027425,2]
[421667295,1778035852000,-928.0,0.00027425,2]
[421667300,1778035852000,-513.87,0.00027899,7]
[421667299,1778035852000,-500.0,0.00027899,2]
[421667301,1778035852000,-3700.0,0.000279,10]
[421667302,1778035852000,-6557.80716983,0.000279,2]
[421667244,1778035852000,-1774.795959,0.00027397,2]
[421667286,1778035852000,-515.45,0.000274,7]
[421667285,1778035852000,-78194.19,0.000274,7]
[421667249,1778035852000,-1774.795959,0.00027397,2]
[421667272,1778035852000,-356.97,0.00027397,2]
[421667277,1778035852000,-151.0,0.00027397,2]
[421667245,1778035852000,-1774.795959,0.00027397,2]
[421667248,1778035852000,-1774.795959,0.00027397,2]
[421667254,1778035852000,-1774.795959,0.00027397,2]
[421667264,1778035852000,-328.357965,0.00027397,2]
[421667253,1778035852000,-1774.795959,0.00027397,2]
[421667255,1778035852000,-1774.795959,0.00027397,2]
[421667263,1778035852000,-328.357965,0.00027397,2]
[421667260,1778035852000,-328.357965,0.00027397,2]
[421667256,1778035852000,-328.357965,0.00027397,2]
[421667259,1778035852000,-328.357965,0.00027397,2]
[421667257,1778035852000,-328.357965,0.00027397,2]
[421667243,1778035852000,-1774.795959,0.00027397,2]
[421667258,1778035852000,-328.357965,0.00027397,2]
[421667275,1778035852000,-25614.74,0.00027397,10]
[421667273,1778035852000,-17195.8,0.00027397,10]
[421667274,1778035852000,-30737.69,0.00027397,10]
[421667261,1778035852000,-328.357965,0.00027397,2]
[421667270,1778035852000,-328.357965,0.00027397,2]
[421667269,1778035852000,-328.357965,0.00027397,2]
[421667267,1778035852000,-328.357965,0.00027397,2]
[421667266,1778035852000,-328.357965,0.00027397,2]
[421667268,1778035852000,-328.357965,0.00027397,2]
[421667265,1778035852000,-328.357965,0.00027397,2]
[421667262,1778035852000,-328.357965,0.00027397,2]
[421667271,1778035852000,-328.357965,0.00027397,2]
[421667333,1778035853000,-151.0,0.00028,7]
[421667335,1778035853000,-274.197896,0.00028,7]
[421667339,1778035853000,-1291.071661,0.00028,7]
[421667338,1778035853000,-1291.071661,0.00028,7]
[421667327,1778035853000,-212.990149,0.00028,7]
[421667340,1778035853000,-488.000693,0.00028,7]
[421667331,1778035853000,-354.624263,0.00028,7]
[421667329,1778035853000,-354.624263,0.00028,7]
[421667343,1778035853000,-488.000685,0.00028,7]
[421667334,1778035853000,-151.0,0.00028,7]
[421667342,1778035853000,-488.000693,0.00028,7]
[421667348,1778035853000,-928.723604,0.00028,7]
[421667341,1778035853000,-488.000693,0.00028,7]
[421667345,1778035853000,-188.558264,0.00028,7]
[421667355,1778035853000,-1576.496436,0.00028,7]
[421667356,1778035853000,-599.837577,0.00028,7]
[421667347,1778035853000,-188.558267,0.00028,7]
[421667346,1778035853000,-188.558264,0.00028,7]
[421667344,1778035853000,-188.558264,0.00028,7]
[421667349,1778035853000,-1576.496441,0.00028,7]
[421667353,1778035853000,-1576.496441,0.00028,7]
[421667350,1778035853000,-928.723604,0.00028,7]
[421667328,1778035853000,-212.990156,0.00028,7]
[421667337,1778035853000,-1291.071661,0.00028,7]
[421667330,1778035853000,-354.624263,0.00028,7]
[421667315,1778035853000,-162.249416,0.00028,7]
[421667325,1778035853000,-212.990149,0.00028,7]
[421667303,1778035853000,-506.0,0.00027938,2]
[421667307,1778035853000,-1217.46556547,0.00028,31]
[421667309,1778035853000,-162.55277151,0.00028,7]
[421667306,1778035853000,-151.0,0.00027997,7]
[421667304,1778035853000,-1436.07393916,0.00027941,2]
[421667305,1778035853000,-261.22043059,0.00027945,5]
[421667308,1778035853000,-15563.60481454,0.00028,60]
[421667310,1778035853000,-5000000.0,0.00028,30]
[421667314,1778035853000,-162.249416,0.00028,7]
[421667313,1778035853000,-162.249416,0.00028,7]
[421667312,1778035853000,-160.0,0.00028,7]
[421667311,1778035853000,-160.0,0.00028,30]
[421667351,1778035853000,-1576.496441,0.00028,7]
[421667317,1778035853000,-151.0,0.00028,7]
[421667318,1778035853000,-151.0,0.00028,7]
[421667319,1778035853000,-151.0,0.00028,7]
[421667316,1778035853000,-162.249416,0.00028,7]
[421667320,1778035853000,-151.0,0.00028,7]
[421667322,1778035853000,-152.907321,0.00028,7]
[421667332,1778035853000,-354.624263,0.00028,7]
[421667321,1778035853000,-151.0,0.00028,7]
[421667323,1778035853000,-151.0,0.00028,7]
[421667324,1778035853000,-151.0,0.00028,7]
[421667326,1778035853000,-212.990149,0.00028,7]
[421667354,1778035853000,-928.723605,0.00028,7]
[421667336,1778035853000,-1291.071661,0.00028,7]
[421667357,1778035853000,-599.837577,0.00028,7]
[421667385,1778035853000,-508.6,0.00028,2]
[421667386,1778035853000,-508.6,0.00028,2]
[421667389,1778035853000,-508.6,0.00028,2]
[421667388,1778035853000,-508.6,0.00028,2]
[421667390,1778035853000,-508.6,0.00028,2]
[421667391,1778035853000,-508.6,0.00028,2]
[421667392,1778035853000,-508.6,0.00028,2]
[421667394,1778035853000,-166.702792,0.00028,7]
[421667393,1778035853000,-508.6,0.00028,2]
[421667396,1778035853000,-166.702792,0.00028,7]
[421667395,1778035853000,-166.702792,0.00028,7]
[421667383,1778035853000,-218.786615,0.00028,7]
[421667398,1778035853000,-2414.6,0.00028267,2]
[421667401,1778035853000,-160.0,0.000284,36]
[421667399,1778035853000,-200.0,0.00028268,2]
[421667402,1778035853000,-199.38,0.00028493,2]
[421667404,1778035853000,-294.66,0.0002863,2]
[421667403,1778035853000,-158.64,0.00028571,2]
[421667405,1778035853000,-295.24,0.0002863,2]
[421667406,1778035853000,-294.66,0.00028661,7]
[421667407,1778035853000,-295.24,0.00028661,7]
[421667409,1778035853000,-294.66,0.00028693,30]
[421667408,1778035853000,-500.0,0.0002867,2]
[421667352,1778035853000,-928.723604,0.00028,7]
[421667400,1778035853000,-156.9009026,0.00028348,2]
[421667387,1778035853000,-508.6,0.00028,2]
[421667397,1778035853000,-151.0,0.00028,7]
[421667382,1778035853000,-151.0,0.00028,7]
[421667359,1778035853000,-599.837581,0.00028,7]
[421667384,1778035853000,-508.6,0.00028,2]
[421667369,1778035853000,-1774.795959,0.00028,7]
[421667358,1778035853000,-599.837577,0.00028,7]
[421667368,1778035853000,-1774.795959,0.00028,7]
[421667363,1778035853000,-483.227326,0.00028,7]
[421667364,1778035853000,-240.342369,0.00028,7]
[421667365,1778035853000,-240.342369,0.00028,7]
[421667362,1778035853000,-483.227327,0.00028,7]
[421667361,1778035853000,-483.227327,0.00028,7]
[421667366,1778035853000,-240.342369,0.00028,7]
[421667367,1778035853000,-240.342364,0.00028,7]
[421667374,1778035853000,-328.357965,0.00028,7]
[421667360,1778035853000,-483.227327,0.00028,7]
[421667375,1778035853000,-328.357966,0.00028,7]
[421667370,1778035853000,-1774.795959,0.00028,7]
[421667372,1778035853000,-328.357965,0.00028,7]
[421667371,1778035853000,-1774.795956,0.00028,7]
[421667378,1778035853000,-151.0,0.00028,7]
[421667380,1778035853000,-904.54429,0.00028,7]
[421667381,1778035853000,-151.0,0.00028,7]
[421667376,1778035853000,-904.544289,0.00028,7]
[421667377,1778035853000,-904.544289,0.00028,7]
[421667373,1778035853000,-328.357965,0.00028,7]
[421667379,1778035853000,-904.544289,0.00028,7]
[421667447,1778035854000,-294.66,0.00029074,30]
[421667446,1778035854000,-184.58,0.00029051,2]
[421667445,1778035854000,-295.24,0.00029042,7]
[421667450,1778035854000,-295.24,0.00029105,2]
[421667449,1778035854000,-294.66,0.00029105,2]
[421667440,1778035854000,-161.49,0.00029,2]
[421667448,1778035854000,-295.24,0.00029074,30]
[421667442,1778035854000,-295.24,0.0002901,2]
[421667443,1778035854000,-584.77922852,0.00029037,7]
[421667453,1778035854000,-294.66,0.00029137,7]
[421667451,1778035854000,-200.0,0.00029121,2]
[421667444,1778035854000,-294.66,0.00029042,7]
[421667464,1778035854000,-2000.0,0.00029237,7]
[421667465,1778035854000,-2000.0,0.00029337,7]
[421667452,1778035854000,-2000.0,0.00029137,7]
[421667454,1778035854000,-295.24,0.00029137,7]
[421667455,1778035854000,-294.66,0.00029169,30]
[421667457,1778035854000,-250.0,0.00029178,12]
[421667456,1778035854000,-295.24,0.00029169,30]
[421667459,1778035854000,-150.0,0.000292,14]
[421667461,1778035854000,-295.24,0.00029201,2]
[421667460,1778035854000,-294.66,0.00029201,2]
[421667462,1778035854000,-294.83,0.00029232,7]
[421667458,1778035854000,-240.86,0.00029178,12]
[421667441,1778035854000,-294.66,0.0002901,2]
[421667467,1778035854000,-152.0,0.00029361,7]
[421667463,1778035854000,-295.43,0.00029232,7]
[421667432,1778035854000,-515.45,0.000289,7]
[421667415,1778035854000,-294.66,0.00028756,7]
[421667436,1778035854000,-295.24,0.00028947,7]
[421667466,1778035854000,-158.64,0.00029354,2]
[421667410,1778035854000,-295.24,0.00028693,30]
[421667411,1778035854000,-294.66,0.00028725,2]
[421667414,1778035854000,-506.0,0.00028739,3]
[421667417,1778035854000,-294.66,0.00028788,30]
[421667412,1778035854000,-295.24,0.00028725,2]
[421667416,1778035854000,-295.24,0.00028756,7]
[421667413,1778035854000,-668.65185757,0.00028728,2]
[421667420,1778035854000,-513.87,0.00028799,7]
[421667427,1778035854000,-294.66,0.00028852,7]
[421667419,1778035854000,-500.0,0.00028799,2]
[421667426,1778035854000,-295.24,0.0002882,2]
[421667421,1778035854000,-162.55277151,0.000288,7]
[421667425,1778035854000,-294.66,0.0002882,2]
[421667423,1778035854000,-160.0,0.000288,30]
[421667424,1778035854000,-160.0,0.000288,7]
[421667422,1778035854000,-160.0,0.000288,10]
[421667418,1778035854000,-295.24,0.00028788,30]
[421667428,1778035854000,-295.24,0.00028852,7]
[421667439,1778035854000,-78194.19,0.00029,7]
[421667434,1778035854000,-295.24,0.00028915,2]
[421667437,1778035854000,-294.66,0.00028979,30]
[421667430,1778035854000,-294.66,0.00028883,30]
[421667433,1778035854000,-294.66,0.00028915,2]
[421667431,1778035854000,-295.24,0.00028883,30]
[421667435,1778035854000,-294.66,0.00028947,7]
[421667429,1778035854000,-157.0,0.00028875,3]
[421667438,1778035854000,-295.24,0.00028979,30]
[421667470,1778035854000,-2770.04049755,0.00029452,30]
[421667509,1778035854000,-356.97,0.00030137,2]
[421667473,1778035854000,-1148.20768402,0.0002948,5]
[421667504,1778035854000,-200.92336054,0.0003012,15]
[421667503,1778035854000,-2000.0,0.00030037,7]
[421667505,1778035854000,-289.47091096,0.0003013,14]
[421667506,1778035854000,-500.0,0.00030136,2]
[421667510,1778035854000,-200.0,0.00030137,2]
[421667508,1778035854000,-152.309585,0.00030137,7]
[421667502,1778035854000,-2000.0,0.00030037,7]
[421667511,1778035854000,-200.0,0.00030137,40]
[421667512,1778035854000,-649.0,0.00030137,120]
[421667507,1778035854000,-513.87,0.00030136,7]
[421667513,1778035854000,-150.0,0.00030137,2]
[421667514,1778035854000,-204.0,0.00030137,2]
[421667501,1778035854000,-2000.0,0.00030037,7]
[421667515,1778035854000,-200.0,0.00030137,2]
[421667526,1778035854000,-624.0,0.00030425,2]
[421667525,1778035854000,-3536.0,0.00030425,2]
[421667524,1778035854000,-184.97,0.00030411,120]
[421667520,1778035854000,-78194.19,0.000302,7]
[421667518,1778035854000,-150.1,0.00030137,30]
[421667521,1778035854000,-2414.6,0.00030239,2]
[421667517,1778035854000,-158.63990247,0.00030137,30]
[421667471,1778035854000,-1062.09034153,0.0002948,5]
[421667523,1778035854000,-160.0,0.000304,42]
[421667522,1778035854000,-506.0,0.00030341,5]
[421667528,1778035854000,-925.0,0.00030425,2]
[421667527,1778035854000,-1352.0,0.00030425,2]
[421667516,1778035854000,-158.64,0.00030137,2]
[421667498,1778035854000,-200.0,0.0003,2]
[421667519,1778035854000,-401.06,0.000302,2]
[421667489,1778035854000,-307.0,0.000298,2]
[421667500,1778035854000,-2000.0,0.00030037,7]
[421667468,1778035854000,-160.0,0.000294,39]
[421667469,1778035854000,-2000.0,0.00029437,7]
[421667474,1778035854000,-1016.73651835,0.0002948,5]
[421667472,1778035854000,-1008.78954567,0.0002948,5]
[421667476,1778035854000,-2000.0,0.00029537,7]
[421667480,1778035854000,-2000.0,0.00029637,7]
[421667478,1778035854000,-500.0,0.00029599,2]
[421667479,1778035854000,-513.87,0.00029599,7]
[421667481,1778035854000,-162.55277151,0.000297,7]
[421667483,1778035854000,-754.0,0.00029773,10]
[421667485,1778035854000,-691.0,0.00029773,10]
[421667477,1778035854000,-506.0,0.0002954,4]
[421667487,1778035854000,-314.0,0.000298,2]
[421667475,1778035854000,-150.0,0.00029534,2]
[421667484,1778035854000,-332.0,0.00029773,10]
[421667482,1778035854000,-2000.0,0.00029737,7]
[421667494,1778035854000,-515.45,0.0003,7]
[421667492,1778035854000,-180.0,0.00029948,4]
[421667497,1778035854000,-200.0,0.0003,2]
[421667495,1778035854000,-200.0,0.0003,2]
[421667496,1778035854000,-200.0,0.0003,2]
[421667493,1778035854000,-200.0,0.00029973,2]
[421667486,1778035854000,-1000.0,0.000298,2]
[421667491,1778035854000,-2000.0,0.00029937,7]
[421667488,1778035854000,-882.0,0.000298,2]
[421667499,1778035854000,-200.0,0.0003,2]
[421667490,1778035854000,-2000.0,0.00029837,7]
[421667555,1778035855000,-536.0,0.00031318,30]
[421667554,1778035855000,-153.0,0.00031318,30]
[421667559,1778035855000,-1062.61,0.00031364,30]
[421667552,1778035855000,-1179.0,0.00031315,30]
[421667558,1778035855000,-200.0,0.00031337,2]